Cogmind - Beta 14 @@@ ROGUE MODE // 2025.04.26 @ 14:09:33 Player: Zaros426 Result: Destroyed by as-40008 with Assembled Heavy Rifle Performance ------------- Evolutions (0) 0 Regions Visited (3) 600 Robots Destroyed (46) 230 Value Destroyed (936) 936 Prototype IDs (41) 820 Alien Tech Used (0) 0 Bonus (63) 63 TOTAL SCORE: 2649 Bonus ------- Aligned with FarCom 300 Friendly Fire -237 Cogmind --------- Core Integrity 0/250 Matter 300/300 Energy 36/100 System Corruption 2% Temperature Cool (0) Movement Treading (240) Ox1 Location -10/Exiles Parts ------- > --- POWER (1) -------- (None) > --- PROPULSION (2) --- Light Treads Light Treads > --- UTILITY (2) ------ High-capacity Storage Unit Shield Generator > --- WEAPON (2) ------- Longsword +1 > --- INVENTORY (20) --- Improved Ion Engine Improved Ion Engine Light Treads Light Treads Light Treads Light Treads High-capacity Battery (250) High-capacity Matter Pod (200) Seismic Detector Modified TNC 0b10 Alert Chip Shield Generator Shield Generator EM Shotgun EM Shotgun Light EM Pulse Cannon Light EM Pulse Cannon Light EM Pulse Cannon Heavy Assault Rifle Peak State ------------ > --- POWER ------------ Improved Ion Engine > --- PROPULSION ------- Light Treads Light Treads > --- UTILITY ---------- Huge Storage Unit Hacking Suite > --- WEAPON ----------- Light EM Pulse Cannon Longsword +1 > --- INVENTORY -------- Improved Ion Engine Improved Ion Engine Nuclear Core Light Fission Core Light Treads Light Treads Light Treads Light Treads Cooling System High-capacity Matter Pod Seismic Detector Modified TNC 0b10 Alert Chip Shield Generator Shield Generator Shield Generator EM Shotgun EM Shotgun Light EM Pulse Cannon Light EM Pulse Cannon Light EM Pulse Cannon Heavy Assault Rifle Datajack Mining Laser [Rating: 23] Favorites ----------- Power Improved Ion Engine Engine Improved Ion Engine Propulsion Light Treads Treads Light Treads Utility Huge Storage Unit Device Shield Generator Storage Huge Storage Unit Hackware Hacking Suite Weapon Light Cannon Energy Gun EM Pulse Gun Energy Cannon Light EM Pulse Cannon Ballistic Gun Assault Rifle Ballistic Cannon Light Cannon Special Weapon Mining Laser Slashing Weapon Longsword +1 Special Melee Weapon Datajack Build | -11 -10 -10 -10 ------- Run | Yrd Mat Min Exi Slots Evolved . | . . . . Power . | . . . . Propulsion . | . . . . Utility . | . . . . Weapon . | . . . . Parts Attached 32 | 7 16 4 5 Power 3 | 1 1 . 1 Engine 3 | 1 1 . 1 Core . | . . . . Reactor . | . . . . Propulsion 9 | 2 5 2 . Treads 9 | 2 5 2 . Leg . | . . . . Wheel . | . . . . Hover . | . . . . Flight . | . . . . Utility 6 | 1 3 . 2 Device 2 | . 1 . 1 Storage 3 | 1 1 . 1 Processor . | . . . . Hackware 1 | . 1 . . Protection . | . . . . Artifact . | . . . . Weapon 14 | 3 7 2 2 Energy Gun 1 | 1 . . . Energy Cannon 2 | . . 2 . Ballistic Gun 2 | 2 . . . Ballistic Cannon 5 | . 5 . . Launcher . | . . . . Special Weapon 2 | . 2 . . Impact Weapon . | . . . . Slashing Weapon 1 | . . . 1 Piercing Weapon . | . . . . Special Melee Weapon 1 | . . . 1 Unidentified Prototypes . | . . . . Parts Lost 2 | . . . 2 Power 1 | . . . 1 Propulsion . | . . . . Utility . | . . . . Weapon 1 | . . . 1 Highest Loss Streak 2 | . . . 2 To Critical Strikes . | . . . . Average Slot Usage (%) 99 | . 99 100 100 Engine 14 | . 14 14 14 Treads 28 | . 28 28 28 Storage 14 | . 14 14 14 Hackware 12 | . 12 14 11 Energy Cannon 11 | . . 26 15 Ballistic Cannon 12 | . 25 . . Special Weapon 1 | . 2 . . Slashing Weapon 1 | . . . 6 Special Melee Weapon 1 | . . . 5 Peak Build Rating 23 | 6 14 16 23 Average Rating 14 | 5 12 15 18 On Entrance 9 | . 6 14 16 Naked Turns . | . . . . Heaviest Build 96 | 14 93 95 96 Greatest Support 40 | 40 40 40 40 Greatest Overweight (x) 2 | . 2 2 2 Average Overweight (x) 1 | . 1 2 1 Largest Inventory Capacity 25 | 8 25 25 25 Average Capacity 24 | 7 24 25 24 Most Carried 25 | 5 25 25 25 Average Carried 22 | 2 21 24 23 Final Capacity 25 | 8 25 25 20 Final Carried 25 | 5 25 25 19 Class Distribution -------------------- 91% | Mutant 8% | Scavenger-Mutant Dominant Class ---------------- Mutant | -10/Materials Mutant | -10/Mines Mutant | -10/Exiles Resources | -11 -10 -10 -10 ----------- Run | Yrd Mat Min Exi Matter Collected 1360 | 318 934 58 50 Remotely . | . . . . Salvage Created 1390 | 123 945 322 . Parts 98 | 7 76 15 . Haulers Intercepted 2 | . 2 . . Recyclers Shooed 6 | 1 5 . . Parts Field Recycled . | . . . . Retrieved Matter . | . . . . Parts Self-Destructed . | . . . . Prevented . | . . . . Kills | -11 -10 -10 -10 ------- Run | Yrd Mat Min Exi Combat Hostiles Destroyed 21 | . 16 5 . Cannons 21 | . 16 5 . Classes Destroyed 11 | 2 7 2 . Worker 5 | . 4 1 . Builder 1 | . 1 . . Tunneler 5 | 2 3 . . Hauler 2 | . 2 . . Recycler 6 | 1 4 1 . Operator 3 | . 3 . . Watcher 3 | . 3 . . Swarmer 3 | . 3 . . Grunt 15 | . 13 2 . Sentry 2 | . . 2 . Demolisher 1 | . . 1 . Best Kill Streak 4 | 2 4 2 . Combat Bots Only 4 | . 4 2 . Max Kills in Single Turn 2 | 1 2 1 . Gunslinging . | . . . . Exploded . | . . . . Melee . | . . . . Uniques/NPCs Destroyed . | . . . . Combat | -11 -10 -10 -10 -------- Run | Yrd Mat Min Exi Hostile Shots Fired 100 | . 51 27 22 Missed 36 | . 21 11 4 Damage Taken 1116 | . 375 331 410 Core 260 | . 31 72 157 Absorbed by Shields 58 | . . . 58 Core Remaining (%) 100 | 100 . . . Volleys Fired 110 | 8 86 16 . Largest 2 | 2 2 2 . Hottest 112 | 40 100 112 . Shots Fired 208 | 16 160 32 . Gun 16 | 16 . . . Cannon 180 | . 148 32 . Launcher . | . . . . Special 12 | . 12 . . Kinetic 164 | 16 148 . . Thermal 12 | . 12 . . Explosive . | . . . . Electromagnetic 32 | . . 32 . Robot Hit Streak 11 | 5 8 11 . Robot Miss Streak 3 | 1 3 2 . Penetration Max . | . . . . Secondary Targets . | . . . . Shots Hit Robots 120 | 11 80 23 6 Core Hits 50 | 4 38 8 . Critical Kills . | . . . . Critical Parts Destroyed . | . . . . Critical Strikes 3 | . 2 1 . Blast 2 | . 2 . . Corrupt 1 | . . 1 . Melee Attacks 6 | . . . 6 Impact . | . . . . Slashing 2 | . . . 2 Piercing . | . . . . Sneak Attacks 5 | . . . 5 Combat Hostiles . | . . . . Follow-up Attacks . | . . . . Damage Inflicted 2241 | 133 1449 533 126 Guns 133 | 133 . . . Cannons 1941 | . 1449 492 . Explosions 41 | . . 41 . Melee 126 | . . . 126 Ramming . | . . . . Kinetic 1582 | 133 1449 . . Thermal 41 | . . 41 . Explosive . | . . . . Electromagnetic 492 | . . 492 . Impact . | . . . . Slashing 126 | . . . 126 Piercing . | . . . . Highest Corruption 2 | . . . 2 Average Corruption 1 | . . . 1 Corruption Purged . | . . . . Corruption Blocked . | . . . . Overload Shots . | . . . . Overflow Damage 32 | . 19 13 . Projectiles 32 | . 19 13 . Explosions . | . . . . Melee . | . . . . Knockbacks 17 | . 17 . . Impact . | . . . . Kinetic 16 | . 16 . . Secondary 1 | . 1 . . Self-Inflicted Damage . | . . . . Shots . | . . . . Rammed . | . . . . Targets Rammed . | . . . . Kicked . | . . . . Crushed . | . . . . Highest Temperature 240 | . 144 240 . Average Temperature 43 | . 28 94 . Received Heat Transfer 276 | . 216 60 . Siege Activations . | . . . . Robots Corrupted . | . . . . Combat Hostiles . | . . . . Parts Fried . | . . . . Impact Corruptions . | . . . . Robots Melted . | . . . . Combat Hostiles . | . . . . Parts Melted . | . . . . Heat Transferred 50 | . . 50 . Parts Sabotaged . | . . . . Parts Stolen . | . . . . Parts Stripped . | . . . . Power Chain Reactions 1 | . . 1 . Alert | -11 -10 -10 -10 ------- Run | Yrd Mat Min Exi Peak Influence 233 | 15 233 132 . Initial 82 | . 9 82 . Average 84 | 4 124 26 . Maximum Alert Level 1 | . 1 . . Low Security (%) 85 | 100 76 100 . Level 1 14 | . 23 . . Level 2 . | . . . . Level 3 . | . . . . Level 4 . | . . . . Level 5 . | . . . . High Security . | . . . . Max Security . | . . . . Squads Dispatched 5 | . 5 . . Investigation 3 | . 3 . . Extermination . | . . . . Reinforcement 2 | . 2 . . Assault . | . . . . Garrison . | . . . . Intercept . | . . . . Searches Triggered . | . . . . Construction Impeded . | . . . . Haulers Reinforced . | . . . . Active Scanning Responses . | . . . . Cargo Convoy Interrupts . | . . . . Stealth | -11 -10 -10 -10 --------- Run | Yrd Mat Min Exi Distress Signals 5 | . 5 . . Communications Jammed . | . . . . Distress Signals . | . . . . Times Spotted 40 | . 32 5 3 Peak Tracking Total 12 | . 3 2 12 Tactical Retreats 7 | . 7 . . Traps | -11 -10 -10 -10 ------- Run | Yrd Mat Min Exi Traps Triggered 1 | . 1 . . Indirectly . | . . . . Trap Hack Attempts . | . . . . Triggered . | . . . . Disarmed . | . . . . Reprogrammed . | . . . . Reused . | . . . . Traps Extracted . | . . . . Installed . | . . . . Triggered . | . . . . Machines | -11 -10 -10 -10 ---------- Run | Yrd Mat Min Exi Machines Disabled 3 | . 3 . . Max in Single Turn 1 | . 1 . . Machines Repaired . | . . . . Machines Dismantled . | . . . . Machines Sabotaged . | . . . . Overloaded Fab Kills . | . . . . Hacking | -11 -10 -10 -10 --------- Run | Yrd Mat Min Exi Machines Accessed 10 | . 8 . 2 Terminals 6 | . 6 . . Fabricators . | . . . . Repair Stations . | . . . . Recycling Units 2 | . 2 . . Scanalyzers . | . . . . Garrison Access . | . . . . Total Hacks 27 | . 25 . 2 Successful 18 | . 16 . 2 Failed 9 | . 9 . . Catastrophic 1 | . 1 . . Database Lockouts . | . . . . Manual 19 | . 18 . 1 Terminals 22 | . 22 . . Fabricators . | . . . . Repair Stations . | . . . . Recycling Units 3 | . 3 . . Scanalyzers . | . . . . Garrison Access . | . . . . Terminal Hacks 10 | . 8 . 2 Record 1 | . . . 1 Robot Schematic 1 | . 1 . . Robot Analysis 3 | . 3 . . Prototype ID Bank 2 | . 2 . . Locate Traps 1 | . 1 . . Hauler Manifests 1 | . 1 . . Derelict Proto ID Bank 1 | . . . 1 Fabricator Hacks . | . . . . Repair Station Hacks . | . . . . Recycling Unit Hacks 1 | . 1 . . Retrieve Components 1 | . 1 . . Scanalyzer . | . . . . Garrison Access Hacks . | . . . . Unauthorized Hacks 7 | . 7 . . Terminals 5 | . 5 . . Skim 5 | . 5 . . Fabricators . | . . . . Repair Stations . | . . . . Recycling Units 2 | . 2 . . Tunnel 2 | . 2 . . Scanalyzers . | . . . . Garrison Access . | . . . . Data Cores Recovered . | . . . . Used . | . . . . Hacking Detections 6 | . 6 . . Full Trace Events . | . . . . Feedback Events . | . . . . Feedback Blocked . | . . . . Robot Schematics Acquired 1 | . 1 . . Robots Built . | . . . . Authchips . | . . . . Time . | . . . . Total Robot Build Rating . | . . . . Part Schematics Acquired . | . . . . Parts Built . | . . . . Authchips . | . . . . Time . | . . . . Total Part Build Rating . | . . . . Parts Repaired . | . . . . Time . | . . . . Parts Recycled . | . . . . Recycled Matter . | . . . . Retrieved Matter . | . . . . Retrieved Components 10 | . 10 . . Parts Scanalyzed . | . . . . Part Schematics Acquired . | . . . . Parts Damaged . | . . . . Bothacking | -11 -10 -10 -10 ------------ Run | Yrd Mat Min Exi Used RIF Installer . | . . . . Robots Hacked 4 | . . . 4 Non-combat 3 | . . . 3 Combat 1 | . . . 1 Robot Hacks Applied 4 | . . . 4 parse_system 4 | . . . 4 Relay Couplers Released . | . . . . Fabnet Peak Effective % . | . . . . Robots Rewired . | . . . . Allies Hacked . | . . . . Hacks Repelled . | . . . . Allies | -11 -10 -10 -10 -------- Run | Yrd Mat Min Exi Total Allies 3 | . . 3 . Largest Group 3 | . . 3 3 Highest-Rated Group 40 | . . 40 40 Highest-Rated Ally 16 | . . 16 16 Total Orders 3 | . . . 3 STAY 2 | . . . 2 FOLLOW 1 | . . . 1 Ally Attacks . | . . . . Total Damage . | . . . . Kills . | . . . . Allies Corrupted . | . . . . Allies Melted . | . . . . Intel | -11 -10 -10 -10 ------- Run | Yrd Mat Min Exi Robot Analysis Total 3 | . 3 . . Derelict Logs Recovered 2 | . . 2 . Drone Launches . | . . . . Drone Recoveries . | . . . . Exploration | -11 -10 -10 -10 ------------- Run | Yrd Mat Min Exi Turns Passed 7193 | 128 3407 2227 1431 Spaces Moved 2094 | 57 942 636 459 Core 2 | 2 . . . Treads 2092 | 55 942 636 459 Legs . | . . . . Wheels . | . . . . Hover . | . . . . Flight . | . . . . Fastest Speed 50 | 50 160 320 240 Average Speed 308 | 156 312 320 303 Slowest Speed 320 | 160 320 320 320 Overloaded Moves . | . . . . Propulsion Burnouts . | . . . . Robots Hopped . | . . . . Cave-ins Triggered . | . . . . Exploration Rate (%) 68 | 5 98 99 70 Regions Visited 3 Branch Regions 2 Pre-discovered Areas 4 | . 3 . 1 Known Exits Taken 2 | . 1 1 . Unknown Exits Taken 1 | 1 . . . Scrap Searched 1 | . . 1 . Spaces Dug 9 | . 9 . . Terrain Destroyed 16 | . 9 7 . Melee . | . . . . Projectile 9 | . 9 . . AOE 7 | . . 7 . Terrain Rammed . | . . . . Walls Destroyed . | . . . . Machines Disabled . | . . . . Actions | -11 -10 -10 -10 --------- Run | Yrd Mat Min Exi Total 2598 | 77 1223 799 499 Wait 271 | 1 130 135 5 Move 2091 | 56 941 635 459 Hop . | . . . . Pick Up 51 | 5 33 4 9 Fast Attach 7 | 6 1 . . Attach 2 | . 1 . 1 Detach . | . . . . Swap 23 | 1 14 4 4 Drop 37 | . 17 5 15 Fire 110 | 8 86 16 . Melee 6 | . . . 6 Ram . | . . . . Kick . | . . . . Crush . | . . . . Escape Stasis . | . . . . Rewire . | . . . . Trap . | . . . . Miscellaneous . | . . . . Route ------- -11/Scrapyard -10/Materials (discovered 5 exits: *Mat x3 / *Min / *Sub) -10/Mines (discovered 4 exits: *Mat x2 / *Exi / Sub) -10/Exiles (discovered 1 exit: [*Min]) History --------- Turn | Location | Event 15 | -11/Scrapyard | Discovered new exit (range 15) 129 | -11/Scrapyard | Entered Materials 301 | -10/Materials | Build established: Mutant 893 | -10/Materials | Discovered new exit (range 9) 1023 | -10/Materials | Discovered new exit (range 7) 1680 | -10/Materials | Discovered new exit (range 7) 1885 | -10/Materials | Discovered new exit (range 10) 2243 | -10/Materials | Discovered new exit (range 9) 2734 | -10/Materials | Learned 2 Mines zone layouts 2807 | -10/Materials | Identified exit to Subcaves 2807 | -10/Materials | Identified exit to Materials 2807 | -10/Materials | Identified exit to Mines 2972 | -10/Materials | Learned location of 1 exit from Recycling 3032 | -10/Materials | Learned location of 1 exit from Recycling 3164 | -10/Materials | Learned location of 2 exits from Subcaves 3536 | -10/Materials | Entered Mines 3538 | -10/Mines | Identified exit to Exiles 3579 | -10/Mines | Assembled infested the area 4141 | -10/Mines | Deemed a non-threat by the Exiles lab entrance 4403 | -10/Mines | Joined a pair of Derelicts in attacking an 0b10 outpost 4480 | -10/Mines | Learned Materials trap positions 5499 | -10/Mines | Assisted by bots powering up and referring to "LRC-V3" 5505 | -10/Mines | Learned Materials terminal intel 5763 | -10/Mines | Entered Exiles 5763 | -10/Exiles | Accompanied by 3 allies 5850 | -10/Exiles | Met 8R-AWN 5907 | -10/Exiles | Met EX-HEX 5998 | -10/Exiles | Met EX-BIN 6048 | -10/Exiles | Aligned with FarCom system 6051 | -10/Exiles | Given EX-Vault access code 6125 | -10/Exiles | Opened EX-Vault 6142 | -10/Exiles | Found Modified TNC 6153 | -10/Exiles | Found 0b10 Alert Chip 6167 | -10/Exiles | Found Longsword +1 6179 | -10/Exiles | Build established: Scavenger-Mutant 6241 | -10/Exiles | Warned to stay clear of 0b10 Research branches 6447 | -10/Exiles | Met EX-DEC 6533 | -10/Exiles | Learned location of Zion (-6) 6779 | -10/Exiles | Build established: Mutant 6816 | -10/Exiles | Discovered new exit (range 10) 7183 | -10/Exiles | Attacked by the Exiles 7189 | -10/Exiles | Core integrity fell below 50% 7190 | -10/Exiles | Core integrity fell below 20% 7194 | -10/Exiles | Destroyed by as-40008 with Assembled Heavy Rifle Last Messages --------------- World map updated: -6/Zion. 06632_ Extracted 4 energy. 06635_ Acquired Hcp. Battery. 06735_ Dropped Rigged Nuclear Core. 06758_ Dropped Rigged Lgt. Fission Core. 06816_ EXIT=FOUND 06948_ Discarded Hacking Suite. 06950_ Acquired Hcp. Storage Unit. 06957_ Dropped Datajack. 06958_ Dropped Mining Laser. 06958_ Dropped Cooling System. 06960_ Dropped Huge Storage Unit. 07110_ Extracted 50 matter. 07182_ Sneak attack on EX-DEC. 07183_ EXILES: Hostile robot within lab perimeter. Defensive protocols time, folks! 07185_ EX-DEC: "Let's see what this bad boy can do..." 07185_ EX-DEC deploys DAS Turret. 07187_ Machine disabled. 07190_ Imp. Ion Engine destroyed. 07190_ Lgt. EM Pulse Cannon destroyed. Map ----- +----------------------------------------------------+ | ##???## ""#?????????????????????????#" | | #####" ""#?????????????????????????#" | | ##" ""#?????????????????????????## | | #"" #????????????????????????????# | | # #????????????????????????????#" | | #### ##??????????????? ??????????#" | | ???### "#?????????????? ""?????????#" | | #####" ###???????????? "?????????##" | | """"" ##??????????? #????????##"" | | ! "###""* ######???### ###????###"" | | /| "#?##" """#####X# #"###"?""""" | | ##??#" * """""" " "" | | """"""###???#"# "" """ " | | #######?????#### " " | | ???????????????### | | ?????????????????### | | ???????????????????## | | ????????????????????## | | ?????????????????????##" | | ??????????????????????#""" """""" | | ?????????????????????##" ######""" | | ?????????????????????#"" ""##????#### | | ????????????????????##"" """##????????? | | ????????????????????#""" """##?????????? | | ????????????????????#""" % ""#??????????? | | ????????????????????#""% @ ########??### | | ????????????????????#""" ## ####"" | | ????????????????????#"" t """" | | ????????????????????##""% a | | ?????????????????????#"""" z | | ?????????????????????## | | ??????????????????????#" " | | ??????????????????????#""" ""## ## | | ??????????????????????#"" ""#### ## | | ??????????????????????#" """"##??# #? | | ??????????????????????#""" """#??## ## | | ??????????????????????## ""##??#! " | | ???????????????????????#"" """##???#" | | ???????????????????????##""" c ##????#" | | ????????????????????????##"""" ##?????#!!""! | | ??????????????????????????## #??????###### | | ????????????????????????????#### ##???????????? | | ???????????????????????????????## #????????????? | | ????????????????????????????????# #????????????? | | ????????????????????????????????# ?????????????? | | ????????????????????????????????# ?????????????? | | ?????????????????????????????????? ??????????????? | | ?????????????????????????????????????????????????? | | ?????????????????????????????????????????????????? | | ?????????????????????????????????????????????????? | +----------------------------------------------------+ Best States ------------- Heat Dissipation 25 Energy Generation 12 Energy Capacity 265 Matter Stores 300 Matter Capacity 300 Sight Range 16 Terrain Scan Density 10 Evasion (%) 40 Recoil Reduction 2 Offensive Hacking 10 Item Schematics ----------------- None Robot Schematics ------------------ M-13 Machinist | -10/Materials | Hacked Fabricated ------------ Nothing Alien Tech Used ----------------- None Achievements -------------- None Challenges ------------ None Game ------ Seed ArcBraceDatajack Manual? 0 Play Time 00:25:15 Cumulative 208.0 hours Start 2025.04.26 @ 13:45:32 End 2025.04.26 @ 14:09:33 Sessions 1 Manual Loads 0 Difficulty Rogue Special Mode None Game No. 101 Rogue 101 Adventurer 0 Explorer 0 Win Type - Total 0 Types 0/0/0/0/0/0/0/0/0 Lore% 54 Gallery% 73 Achievement% 60 Wizard Run 0 Options --------- Layout 0 ASCII 0 Keyboard 0 Movement Mouse Keybinds 0 Fullscreen 1 Font 24/Smallcaps Map View 183x50 Zoom Use 0% Tactical HUD 1 Map Filters NONE Filters NONE Steam 0 RUN: 390f9888-5e67-45fd-a95b-f2b908832b08